fUST/lending_fUST_20250811
["ID","MTS","AMOUNT","RATE_DAILY","PERIOD"]
[378528973,1754901046133,-129.99523472,0.00021733,2]
[378528993,1754901046318,460.0,0.00031347,30]
[378529007,1754901046476,578.9513623,0.00027589,30]
[378529008,1754901046527,460.0,0.00031347,30]
[378529009,1754901046578,460.0,0.00031347,30]
[378529010,1754901046630,460.0,0.00031347,30]
[378529011,1754901046802,460.0,0.00031347,30]
[378529012,1754901046868,460.0,0.00031347,30]
[378529013,1754901046920,464.63253579,0.00031347,30]
[378529014,1754901047049,460.0,0.00031347,30]
[378529015,1754901047183,460.0,0.00031347,30]
[378529016,1754901047293,460.0,0.00031347,30]
[378529017,1754901047360,460.0,0.00031347,30]
[378529018,1754901047465,460.0,0.00031347,30]
[378529019,1754901047524,460.0,0.00031347,30]
[378529020,1754901047704,460.0,0.00031347,30]
[378529021,1754901047749,229.2047241,0.00031347,30]
[378529022,1754901047793,460.0,0.00031347,30]
[378529023,1754901047957,460.0,0.00031347,30]
[378529024,1754901048025,460.0,0.00031347,30]
[378529025,1754901048211,460.0,0.00031347,30]
[378529026,1754901048280,460.0,0.00031347,30]
[378529027,1754901048436,460.0,0.00031347,30]
[378529028,1754901048530,443.139487,0.00031347,30]
[378529029,1754901048579,460.0,0.00031347,30]
[378529030,1754901048818,460.0,0.00031347,30]
[378529031,1754901048865,461.70632069,0.00031347,30]
[378529032,1754901048929,460.0,0.00031347,30]
[378529033,1754901049178,472.29858012,0.00031347,30]
[378529039,1754901050921,460.0,0.00031347,30]
[378529040,1754901051179,460.0,0.00031347,30]
[378529041,1754901051430,460.0,0.00031347,30]
[378529042,1754901051676,460.0,0.00031347,30]
[378529043,1754901051911,460.0,0.00031347,30]
[378529044,1754901052015,461.30587264,0.00031347,30]
[378529045,1754901052154,460.0,0.00031347,30]
[378529046,1754901052378,460.0,0.00031347,30]
[378529047,1754901052421,460.0,0.00031347,30]
[378529048,1754901052612,460.0,0.00031347,30]
[378529049,1754901052657,460.0,0.00031347,30]
[378529050,1754901052861,460.0,0.00031347,30]
[378529051,1754901052911,460.0,0.00031347,30]
[378529052,1754901053021,460.0,0.00031347,30]
[378529053,1754901053094,592.27905325,0.00031347,30]
[378529054,1754901053149,460.0,0.00031347,30]
[378529055,1754901053298,460.0,0.00031347,30]
[378529056,1754901053436,460.0,0.00031347,30]
[378529057,1754901053573,460.0,0.00031347,30]
[378529058,1754901053677,460.0,0.00031347,30]
[378529059,1754901053815,460.0,0.00031347,30]
[378529060,1754901053930,303.91614011,0.00031347,30]
[378529061,1754901054072,460.0,0.00031347,30]
[378529062,1754901054314,460.0,0.00031347,30]
[378529063,1754901054579,460.0,0.00031347,30]
[378529064,1754901054816,460.0,0.00031347,30]
[378529065,1754901055115,460.0,0.00031347,30]
[378529066,1754901055371,467.57227805,0.00031347,30]
[378529067,1754901055784,465.35127637,0.00031347,30]
[378529068,1754901056031,460.0,0.00031347,30]
[378529069,1754901056233,460.0,0.00031347,30]
[378529070,1754901056318,460.0,0.00031347,30]
[378529071,1754901056478,462.70960319,0.00031347,30]
[378529072,1754901056605,460.0,0.00031347,30]
[378529073,1754901056648,460.0,0.00031347,30]
[378529074,1754901056837,460.0,0.00031347,30]
[378529075,1754901056883,460.0,0.00031347,30]
[378529076,1754901057090,460.0,0.00031347,30]
[378529077,1754901057372,331.9098987,0.00031347,30]
[378529078,1754901057462,460.0,0.00031347,30]
[378529079,1754901058034,460.0,0.00031347,30]
[378529080,1754901058080,460.0,0.00031347,30]
[378529081,1754901058266,460.0,0.00031347,30]
[378529082,1754901058311,460.0,0.00031347,30]
[378529083,1754901058553,460.0,0.00031347,30]
[378529084,1754901058714,460.0,0.00031347,30]
[378529085,1754901058801,460.0,0.00031347,30]
[378529086,1754901058936,533.69001031,0.00031347,30]
[378529087,1754901058977,460.0,0.00031347,30]
[378529088,1754901059047,460.0,0.00031347,30]
[378529089,1754901059186,460.0,0.00031347,30]
[378529090,1754901059301,460.0,0.00031347,30]
[378529091,1754901059414,460.0,0.00031347,30]
[378529092,1754901059617,219.26973596,0.00031347,30]
[378529093,1754901062428,460.0,0.00031347,30]
[378529094,1754901062680,460.0,0.00031347,30]
[378529095,1754901063513,460.0,0.00031347,30]
[378529096,1754901063792,460.0,0.00031347,30]
[378529097,1754901064016,460.0,0.00031347,30]
[378529098,1754901064254,460.0,0.00031347,30]
[378529099,1754901064318,460.0,0.00031347,30]
[378529100,1754901064395,460.0,0.00031347,30]
[378529101,1754901064514,460.0,0.00031347,30]
[378529102,1754901064561,460.0,0.00031347,30]
[378529103,1754901064633,460.0,0.00031347,30]
[378529104,1754901064779,460.0,0.00031347,30]
[378529105,1754901064824,406.97816848,0.00031347,30]
[378529106,1754901064876,463.02542201,0.00031347,30]
[378529107,1754901065304,460.0,0.00031347,30]
[378529108,1754901066365,460.0,0.00031347,30]
[378529109,1754901066645,460.0,0.00031347,30]
[378529110,1754901066702,460.0,0.00031347,30]
[378529111,1754901066888,460.0,0.00031347,30]
[378529112,1754901066961,460.0,0.00031347,30]
[378529113,1754901067217,460.0,0.00031347,30]
[378529114,1754901067259,557.31513292,0.00031347,30]
[378529115,1754901067405,460.0,0.00031347,30]
[378529116,1754901067502,460.0,0.00031347,30]
[378529117,1754901067760,460.0,0.00031347,30]
[378529118,1754901067866,460.0,0.00031347,30]
[378529119,1754901067985,460.0,0.00031347,30]
[378529120,1754901068032,460.0,0.00031347,30]
[378529121,1754901068155,460.0,0.00031347,30]
[378529122,1754901068314,460.0,0.00031347,30]
[378529123,1754901068403,264.11257862,0.00031347,30]
[378529124,1754901068676,460.0,0.00031347,30]
[378529125,1754901069087,466.84914086,0.00031347,30]
[378529126,1754901069133,460.0,0.00031347,30]
[378529127,1754901069183,460.0,0.00031347,30]
[378529128,1754901069467,460.0,0.00031347,30]
[378529129,1754901069935,460.0,0.00031347,30]
[378529130,1754901070265,460.0,0.00031347,30]
[378529131,1754901070315,460.0,0.00031347,30]
[378529132,1754901070366,460.0,0.00031347,30]
[378529133,1754901070516,460.0,0.00031347,30]
[378529134,1754901070656,460.0,0.00031347,30]
[378529135,1754901070755,460.0,0.00031347,30]
[378529136,1754901070981,460.0,0.00031347,30]
[378529137,1754901071125,460.0,0.00031347,30]
[378529138,1754901071377,460.0,0.00031347,30]
[378529139,1754901071496,460.0,0.00031347,30]
[378529140,1754901071648,460.0,0.00031347,30]
[378529141,1754901071810,460.0,0.00031347,30]
[378529142,1754901071884,460.0,0.00031347,30]
[378529143,1754901072139,460.0,0.00031347,30]
[378529144,1754901072190,460.0,0.00031347,30]
[378529145,1754901072438,460.0,0.00031347,30]
[378529146,1754901072486,374.37602929,0.00031347,30]
[378529147,1754901072606,460.0,0.00031347,30]
[378529148,1754901072656,460.0,0.00031347,30]
[378529149,1754901072701,460.0,0.00031347,30]
[378529150,1754901072758,511.08272571,0.00031347,30]
[378529151,1754901072896,460.0,0.00031347,30]
[378529152,1754901072945,540.8001989,0.00031347,30]
[378529153,1754901072990,460.0,0.00031347,30]
[378529154,1754901073119,460.0,0.00031347,30]
[378529155,1754901073175,515.37607058,0.00031347,30]
[378529156,1754901073358,460.0,0.00031347,30]
[378529157,1754901073596,460.0,0.00031347,30]
[378529158,1754901073867,460.0,0.00031347,30]
[378529159,1754901074096,460.0,0.00031347,30]
[378529161,1754901074332,460.0,0.00031347,30]
[378529162,1754901074565,460.0,0.00031347,30]
[378529163,1754901074775,460.0,0.00031347,30]
[378529164,1754901074822,377.99879673,0.00031347,30]
[378529165,1754901074872,460.0,0.00031347,30]
[378529166,1754901074924,460.0,0.00031347,30]
[378529167,1754901074973,460.0,0.00031347,30]
[378529168,1754901075210,460.0,0.00031347,30]
[378529169,1754901075262,460.0,0.00031347,30]
[378529170,1754901075311,693.57,0.00031347,30]
[378529171,1754901075358,460.0,0.00031347,30]
[378529172,1754901075432,460.0,0.00031347,30]
[378529173,1754901075575,460.0,0.00031347,30]
[378529174,1754901075628,485.7679854,0.00031347,30]
[378529175,1754901075692,693.57,0.00031347,30]
[378529176,1754901075760,460.0,0.00031347,30]
[378529177,1754901075809,468.87040517,0.00031347,30]
[378529178,1754901075873,693.57,0.00031347,30]
[378529179,1754901075939,460.0,0.00031347,30]
[378529180,1754901075983,693.57,0.00031347,30]
[378529181,1754901076124,460.0,0.00031347,30]
[378529182,1754901076176,693.57,0.00031347,30]
[378529183,1754901076227,710.3,0.00031347,30]
[378529184,1754901076364,460.0,0.00031347,30]
[378529185,1754901076420,710.3,0.00031347,30]
[378529186,1754901076627,460.0,0.00031347,30]
[378529187,1754901076670,710.3,0.00031347,30]
[378529188,1754901076733,460.0,0.00031347,30]
[378529189,1754901076777,693.57,0.00031347,30]
[378529190,1754901076856,460.0,0.00031347,30]
[378529191,1754901076902,710.3,0.00031347,30]
[378529192,1754901076982,595.33098887,0.00031347,30]
[378529193,1754901077063,693.57,0.00031347,30]
[378529194,1754901077106,460.0,0.00031347,30]
[378529195,1754901077146,460.84435462,0.00031347,30]
[378529196,1754901077187,710.3,0.00031347,30]
[378529198,1754901077327,324.10280297,0.00031347,30]
[378529199,1754901077371,693.57,0.00031347,30]
[378529200,1754901077414,460.0,0.00031347,30]
[378529201,1754901077456,710.3,0.00031347,30]
[378529202,1754901077599,693.57,0.00031347,30]
[378529203,1754901077645,460.0,0.00031347,30]
[378529204,1754901077786,710.3,0.00031347,30]
[378529205,1754901077856,460.0,0.00031347,30]
[378529206,1754901077902,693.57,0.00031347,30]
[378529207,1754901078097,710.3,0.00031347,30]
[378529208,1754901078144,693.57,0.00031347,30]
[378529209,1754901078189,460.0,0.00031347,30]
[378529210,1754901078330,693.57,0.00031347,30]
[378529211,1754901078379,710.3,0.00031347,30]
[378529212,1754901078623,710.3,0.00031347,30]
[378529213,1754901078668,693.57,0.00031347,30]
[378529214,1754901078895,710.3,0.00031347,30]
[378529215,1754901078942,693.57,0.00031347,30]
[378529216,1754901078985,460.0,0.00031347,30]
[378529217,1754901079130,710.3,0.00031347,30]
[378529218,1754901079181,693.57,0.00031347,30]
[378529219,1754901079229,460.0,0.00031347,30]
[378529220,1754901079385,710.3,0.00031347,30]
[378529221,1754901079459,693.57,0.00031347,30]
[378529222,1754901079506,460.0,0.00031347,30]
[378529223,1754901079571,460.0,0.00031347,30]
[378529224,1754901079628,710.3,0.00031347,30]
[378529225,1754901079688,693.57,0.00031347,30]
[378529226,1754901079730,460.0,0.00031347,30]
[378529227,1754901079771,460.0,0.00031347,30]
[378529229,1754901079907,710.3,0.00031347,30]
[378529230,1754901079952,460.0,0.00031347,30]
[378529231,1754901079996,693.57,0.00031347,30]
[378529232,1754901080043,460.0,0.00031347,30]
[378529233,1754901080085,460.0,0.00031347,30]
[378529234,1754901080127,460.0,0.00031347,30]
[378529235,1754901080175,460.0,0.00031347,30]
[378529236,1754901080217,460.0,0.00031347,30]
[378529237,1754901080260,693.57,0.00031347,30]
[378529238,1754901080418,460.0,0.00031347,30]
[378529239,1754901080463,328.78350434,0.00031347,30]
[378529243,1754901086882,10000.0,0.00028,30]
[378529253,1754901122342,5000.0,0.00019709,2]
[378529254,1754901122546,1016.99558472,0.00019178,2]
[378529255,1754901148601,10000.0,0.00030137,120]
[378529256,1754901155559,273.914335,0.00013699,2]
[378529257,1754901156347,10000.0,0.00030137,120]
[378529260,1754901163558,10000.0,0.00028,30]
[378529264,1754901171365,10000.0,0.00030137,120]
[378529266,1754901177618,10000.0,0.00028,30]
[378529267,1754901209634,931.71913241,0.000199,2]
[378529268,1754901218567,10000.0,0.00030137,120]
[378529269,1754901225589,10000.0,0.00028,30]
[378529270,1754901237824,4569.0,0.00028,30]
[378529278,1754901321729,3052.64,0.00027999,30]
[378529284,1754901331202,644.71525856,0.000199,2]
[378529285,1754901338870,5000.0,0.00027999,30]
[378529288,1754901355523,194.29625174,0.000199,2]
[378529293,1754901402623,900.66146303,0.000199,2]
[378529296,1754901457275,2000.0,0.00028,30]
[378529297,1754901489871,5342.94394811,0.00019899,2]
[378529298,1754901489892,7457.58681928,0.00019899,2]
[378529299,1754901499197,1026.66688563,0.00019901,2]
[378529300,1754901517966,274.53610767,0.00019899,2]
[378529301,1754901562522,1411.57500587,0.00019898,2]
[378529302,1754901577075,3973.33311437,0.00019901,2]
[378529303,1754901607924,202.29563349,0.000199,2]
[378529304,1754901652967,183.02407178,0.00019897,2]
[378529306,1754901698673,5470.98236191,0.00018998,2]
[378529307,1754901698696,19429.01763809,0.00018998,2]
[378529313,1754901714139,570.98236191,0.00019901,2]
[378529314,1754901714161,4429.01763809,0.00019901,2]
[378529321,1754901730446,5000.0,0.00019901,2]
[378529322,1754901731358,302.84859387,0.00019801,2]
[378529328,1754901748395,5000.0,0.00019901,2]
[378529330,1754901764798,5000.0,0.00019901,2]
[378529332,1754901776277,268.13376804,0.00019889,2]
[378529333,1754901776303,966.99436207,0.00019889,2]
[378529335,1754901780740,5000.0,0.00019901,2]
[378529336,1754901782346,185.5979594,0.00019889,2]
[378529337,1754901787066,502.780124,0.000199,2]
[378529338,1754901796409,5000.0,0.00019901,2]
[378529340,1754901811796,267.734222,0.00018995,2]
[378529341,1754901812939,210.29013031,0.00019901,2]
[378529343,1754901830748,7866.60320222,0.00019889,2]
[378529344,1754901830769,2620.9513095,0.00019889,2]
[378529347,1754901906718,159.965546,0.00019863,2]
[378529376,1754901968909,486.02078634,0.000199,2]
[378529383,1754901991697,200.0,0.00030028,120]
[378529384,1754902004783,366.04814356,0.00019888,2]
[378529403,1754902060538,179.65122183,0.00019877,2]
[378529408,1754902077181,3764.8829568,0.00018983,2]
[378529417,1754902128036,1263.97726589,0.00019876,2]
[378529418,1754902149561,573.11525808,0.000199,2]
[378529419,1754902173319,9366.87524176,0.00019876,2]
[378529457,1754902233569,-1200.0,0.00019965,2]
[378529458,1754902233579,-314.26,0.00019966,3]
[378529459,1754902233607,-495.0,0.00019966,3]
[378529460,1754902233617,-404.63,0.00019966,3]
[378529461,1754902233627,-63.05060182,0.00019966,3]
[378529462,1754902233675,-139.25939818,0.00019966,3]
[378529463,1754902233685,-606.98,0.00019966,3]
[378529464,1754902233698,-300.0,0.00019971,2]
[378529465,1754902233707,-300.0,0.00019972,2]
[378529466,1754902233718,-300.0,0.00019972,2]
[378529467,1754902233728,-26.79325709,0.00019972,2]
[378529474,1754902238033,-273.20674291,0.00019972,2]
[378529475,1754902238043,-300.0,0.00019972,2]
[378529476,1754902238052,-500.0,0.00019973,2]
[378529477,1754902238061,-1961.87618757,0.00019975,2]
[378529478,1754902238071,-500.0,0.00019975,2]
[378529479,1754902238081,-1256.50656605,0.00019975,2]
[378529480,1754902238119,-705.36962152,0.00019975,2]
[378529481,1754902238128,-1961.87618757,0.00019975,2]
[378529482,1754902238138,-500.0,0.00019975,2]
[378529483,1754902238147,-1961.87618757,0.00019975,2]
[378529484,1754902238156,-1961.87618757,0.00019975,2]
[378529485,1754902238165,-235.27448334,0.00019975,2]
[378529486,1754902238174,-1961.87618757,0.00019975,2]
[378529487,1754902238184,-1961.87618757,0.00019975,2]
[378529488,1754902238193,-1961.87618757,0.00019975,2]
[378529489,1754902238202,-1961.87618757,0.00019975,2]
[378529490,1754902238212,-500.0,0.00019975,2]
[378529491,1754902238221,-1961.87618757,0.00019975,2]
[378529492,1754902238230,-1961.87618757,0.00019975,2]
[378529493,1754902238239,-1961.87618757,0.00019975,2]
[378529494,1754902238251,-1961.87618757,0.00019975,2]
[378529495,1754902238260,-1961.87618757,0.00019975,2]
[378529496,1754902238270,-1961.87618757,0.00019975,2]
[378529497,1754902238280,-1961.87618757,0.00019975,2]
[378529498,1754902238290,-1961.87618757,0.00019975,2]
[378529499,1754902238299,-1961.87618757,0.00019975,2]
[378529500,1754902238308,-1961.87618757,0.00019975,2]
[378529501,1754902238318,-1961.87618757,0.00019975,2]
[378529502,1754902238327,-500.0,0.00019975,2]
[378529503,1754902238337,-500.0,0.00019975,2]
[378529504,1754902238346,-500.0,0.00019975,2]
[378529505,1754902238356,-500.0,0.00019975,2]
[378529506,1754902238365,-500.0,0.00019975,2]
[378529507,1754902238375,-500.0,0.00019975,2]
[378529508,1754902238385,-500.0,0.00019975,2]
[378529509,1754902238394,-500.0,0.00019975,2]
[378529510,1754902238403,-500.0,0.00019975,2]
[378529511,1754902238413,-500.0,0.00019975,2]
[378529512,1754902238422,-348.68683826,0.00019975,2]
[378529513,1754902238431,-320.00000001,0.00019975,2]
[378529514,1754902238441,-582.58604351,0.00019975,2]
[378529515,1754902238450,-500.0,0.00019975,2]
[378529516,1754902238459,-500.0,0.00019975,2]
[378529517,1754902238468,-500.0,0.00019975,2]
[378529518,1754902238477,-321.93989149,0.00019975,2]
[378529519,1754902238486,-500.0,0.00019975,2]
[378529520,1754902238494,-500.0,0.00019975,2]
[378529521,1754902238504,-500.0,0.00019975,2]
[378529522,1754902238513,-449.92775301,0.00019975,2]
[378529523,1754902238526,-500.0,0.00019975,2]
[378529524,1754902238536,-500.0,0.00019975,2]
[378529525,1754902238545,-500.0,0.00019975,2]
[378529526,1754902238647,-500.0,0.00019975,2]
[378529527,1754902238657,-500.0,0.00019975,2]
[378529528,1754902238667,-500.0,0.00019975,2]
[378529529,1754902238676,-500.0,0.00019975,2]
[378529530,1754902238685,-471.52198551,0.00019975,2]
[378529531,1754902238695,-500.0,0.00019975,2]
[378529532,1754902238704,-500.0,0.00019975,2]
[378529533,1754902238713,-500.0,0.00019975,2]
[378529534,1754902238722,-500.0,0.00019975,2]
[378529535,1754902238732,-500.0,0.00019975,2]
[378529536,1754902238741,-500.0,0.00019975,2]
[378529537,1754902238751,-500.0,0.00019975,2]
[378529538,1754902238760,-500.0,0.00019975,2]
[378529539,1754902238769,-500.0,0.00019975,2]
[378529540,1754902238778,-500.0,0.00019975,2]
[378529541,1754902238788,-500.0,0.00019975,2]
[378529542,1754902238797,-500.0,0.00019975,2]
[378529543,1754902238807,-500.0,0.00019975,2]
[378529544,1754902238817,-500.0,0.00019975,2]
[378529545,1754902238826,-500.0,0.00019975,2]
[378529546,1754902238836,-1961.87618757,0.00019975,2]
[378529547,1754902238846,-500.0,0.00019975,2]
[378529548,1754902238856,-500.0,0.00019975,2]
[378529549,1754902238865,-500.0,0.00019975,2]
[378529550,1754902238874,-500.0,0.00019975,2]
[378529551,1754902238884,-500.0,0.00019975,2]
[378529552,1754902238893,-500.0,0.00019975,2]
[378529553,1754902238903,-500.0,0.00019975,2]
[378529554,1754902238914,-500.0,0.00019975,2]
[378529555,1754902238923,-215.72126024,0.00019975,2]
[378529556,1754902238933,-500.0,0.00019975,2]
[378529557,1754902238943,-500.0,0.00019975,2]
[378529558,1754902238952,-500.0,0.00019975,2]
[378529559,1754902238961,-500.0,0.00019975,2]
[378529560,1754902238970,-500.0,0.00019975,2]
[378529561,1754902238979,-300.0,0.00019976,2]
[378529562,1754902238989,-500.0,0.00019977,2]
[378529563,1754902238998,-1200.0,0.00019977,2]
[378529564,1754902239007,-8505.0,0.00019978,3]
[378529565,1754902239016,-4252.5,0.00019978,3]
[378529566,1754902239025,-2414.34,0.00019978,3]
[378529567,1754902239035,-1207.17,0.00019978,3]
[378529568,1754902239044,-603.58,0.00019978,3]
[378529569,1754902239053,-301.79,0.00019978,3]
[378529570,1754902239062,-150.9,0.00019978,3]
[378529571,1754902239071,-452.7,0.00019978,3]
[378529572,1754902239080,-417.15472785,0.00019978,3]
[378529573,1754902239090,-461.69158338,0.00019978,3]
[378529574,1754902239099,-215.4905783,0.00019978,3]
[378529575,1754902239109,-12671.21867243,0.00019978,3]
[378529576,1754902239118,-500.0,0.00019978,2]
[378529577,1754902239128,-206.61150644,0.00019978,2]
[378529578,1754902239137,-151.0,0.00019978,2]
[378529579,1754902239146,-151.0,0.00019989,2]
[378529580,1754902239155,-176.073319,0.00019989,2]
[378529581,1754902239164,-10765.4781714,0.0001999,2]
[378529582,1754902239173,-100000.0,0.0001999,2]
[378529583,1754902239182,-151.210671,0.0001999,2]
[378529584,1754902239192,-227.828866,0.0001999,2]
[378529585,1754902239201,-500.0,0.00019997,2]
[378529586,1754902239211,-151.87830643,0.00019997,2]
[378529587,1754902239226,-151.0,0.00019997,2]
[378529588,1754902239246,-500.0,0.00019997,2]
[378529589,1754902239262,-500.0,0.00019997,2]
[378529590,1754902239281,-151.0,0.00019997,2]
[378529591,1754902239301,-500.0,0.00019997,2]
[378529592,1754902239322,-228.62727682,0.00019997,2]
[378529593,1754902239341,-274.24377217,0.00019997,2]
[378529594,1754902239360,-151.0,0.00019997,2]
[378529595,1754902239375,-151.0,0.00019997,2]
[378529596,1754902239392,-151.15961438,0.00019997,2]
[378529597,1754902239409,-500.0,0.00019997,2]
[378529598,1754902239430,-151.0,0.00019997,2]
[378529599,1754902239443,-500.0,0.00019997,2]
[378529600,1754902239460,-151.0,0.00019997,2]
[378529601,1754902239477,-500.0,0.00019997,2]
[378529602,1754902239492,-500.0,0.00019997,2]
[378529603,1754902239507,-151.0,0.00019997,2]
[378529604,1754902239524,-151.0,0.00019997,2]
[378529605,1754902239542,-203.14305158,0.00019997,2]
[378529606,1754902239556,-151.0,0.00019997,2]
[378529607,1754902239572,-500.0,0.00019997,2]
[378529608,1754902239585,-151.0,0.00019997,2]
[378529609,1754902239599,-500.0,0.00019997,2]
[378529610,1754902239615,-500.0,0.00019997,2]
[378529613,1754902239632,-151.0,0.00019997,2]
[378529614,1754902239647,-151.0,0.00019997,2]
[378529615,1754902239661,-151.0,0.00019997,2]
[378529616,1754902239675,-151.0,0.00019997,2]
[378529617,1754902239690,-151.0,0.00019997,2]
[378529618,1754902239704,-151.0,0.00019997,2]
[378529619,1754902239718,-151.0,0.00019997,2]
[378529622,1754902239732,-500.0,0.00019997,2]
[378529624,1754902239747,-1083.56593352,0.00019999,2]
[378529627,1754902239761,-13857.84016027,0.0002,14]
[378529628,1754902239776,-191.27928345,0.0002,2]
[378529629,1754902239791,-160.0,0.0002,3]
[378529630,1754902239805,-273.914335,0.00020187,2]
[378529631,1754902239819,-500.0,0.00020251,2]
[378529633,1754902239834,-500.0,0.00020271,2]
[378529634,1754902239848,-151.31414081,0.00020271,2]
[378529635,1754902239863,-500.0,0.00020271,2]
[378529636,1754902239876,-500.0,0.00020271,2]
[378529637,1754902239891,-151.0,0.00020271,2]
[378529638,1754902239905,-500.0,0.00020271,2]
[378529639,1754902239919,-151.63466322,0.00020271,2]
[378529640,1754902239933,-259.69086715,0.00020271,2]
[378529641,1754902239947,-500.0,0.00020271,2]
[378529642,1754902239962,-500.0,0.00020271,2]
[378529643,1754902239977,-574.54813275,0.00020271,2]
[378529644,1754902239991,-151.0,0.00020271,2]
[378529645,1754902240005,-151.0,0.00020271,2]
[378529646,1754902240019,-500.0,0.00020271,2]
[378529647,1754902240034,-151.0,0.00020271,2]
[378529649,1754902240048,-500.0,0.00020271,2]
[378529650,1754902240062,-500.0,0.00020271,2]
[378529651,1754902240077,-151.0,0.00020271,2]
[378529652,1754902240091,-152.664452,0.00020271,2]
[378529653,1754902240105,-151.0,0.00020271,2]
[378529654,1754902240119,-151.0,0.00020271,2]
[378529655,1754902240133,-151.0,0.00020271,2]
[378529656,1754902240147,-151.0,0.00020271,2]
[378529657,1754902240282,-207.83573585,0.00020271,2]
[378529658,1754902240297,-500.0,0.00020271,2]
[378529659,1754902240306,-200.0,0.00020371,15]
[378529660,1754902240316,-200.0,0.00020371,15]
[378529661,1754902240325,-200.0,0.00020371,15]
[378529662,1754902240334,-200.0,0.00020371,15]
[378529663,1754902240343,-200.0,0.00020371,15]
[378529664,1754902240352,-151.0,0.00020372,2]
[378529665,1754902240362,-151.0,0.00020372,2]
[378529666,1754902240371,-151.0,0.00020372,2]
[378529667,1754902240380,-500.0,0.00020372,2]
[378529668,1754902240390,-151.0,0.00020372,2]
[378529669,1754902240399,-18502.69577858,0.00020372,2]
[378529670,1754902240409,-151.0,0.00020372,2]
[378529671,1754902240418,-500.0,0.00020372,2]
[378529672,1754902240428,-151.0,0.00020372,2]
[378529673,1754902240438,-151.0,0.00020372,2]
[378529674,1754902240448,-151.0,0.00020372,2]
[378529675,1754902240458,-151.0,0.00020372,2]
[378529676,1754902240467,-500.0,0.00020372,2]
[378529677,1754902240477,-151.0,0.00020372,2]
[378529678,1754902240487,-151.0,0.00020372,2]
[378529679,1754902240497,-500.0,0.00020372,2]
[378529680,1754902240507,-151.0,0.00020372,2]
[378529681,1754902240516,-151.0,0.00020372,2]
[378529682,1754902240530,-500.0,0.00020372,2]
[378529683,1754902240539,-151.0,0.00020372,2]
[378529684,1754902240548,-151.0,0.00020372,2]
[378529685,1754902240558,-500.0,0.00020372,2]
[378529686,1754902240568,-151.0,0.00020372,2]
[378529687,1754902240578,-151.0,0.00020372,2]
[378529688,1754902240588,-500.0,0.00020372,2]
[378529689,1754902240598,-151.0,0.00020372,2]
[378529690,1754902240607,-151.0,0.00020372,2]